[Event "Titled Tuesday Blitz August 08 Early 2023"]
[White "Escudero Donoso, Felipe"]
[Black "Al Mutairi, Hassan S"]
[WhiteFideId "3410595"]
[BlackFideId "21500193"]
[WhiteElo "2411"]
[BlackElo "1709"]
[Result "1-0"]
[Round "2"]
[TimeControl "180+1"]
[Date "2023.08.08"]
[WhiteClock "0:00:03"]
[BlackClock "0:01:25"]
[Board "282"]

1. d4 {[%clk 0:03:00]}  Nf6 {[%clk 0:02:58]} 2. Bg5 {[%clk 0:02:59]}  e6 {[%clk 0:02:59]} 3. Nd2 {[%clk 0:02:59]}  h6 {[%clk 0:02:59]} 4. Bh4 {[%clk 0:02:57]}  Be7 {[%clk 0:02:58]} 5. e3 {[%clk 0:02:57]}  Nc6 {[%clk 0:02:59]} 6. c3 {[%clk 0:02:55]}  d5 {[%clk 0:02:59]} 7. Bd3 {[%clk 0:02:55]}  Bd7 {[%clk 0:03:00]} 8. f4 {[%clk 0:02:55]}  O-O {[%clk 0:03:00]} 9. Ngf3 {[%clk 0:02:56]}  Ne8 {[%clk 0:02:58]} 10. Bxe7 {[%clk 0:02:55]}  Qxe7 {[%clk 0:02:59]} 11. O-O {[%clk 0:02:56]}  Nd6 {[%clk 0:02:59]} 12. Ne5 {[%clk 0:02:55]}  Be8 {[%clk 0:02:52]} 13. Qg4 {[%clk 0:02:45]}  f5 {[%clk 0:02:45]} 14. Qg3 {[%clk 0:02:45]}  Ne4 {[%clk 0:02:45]} 15. Bxe4 {[%clk 0:02:42]}  fxe4 {[%clk 0:02:46]} 16. a3 {[%clk 0:02:26]}  Nxe5 {[%clk 0:02:46]} 17. fxe5 {[%clk 0:02:23]}  Bh5 {[%clk 0:02:46]} 18. Rae1 {[%clk 0:01:56]}  Rxf1+ {[%clk 0:02:44]} 19. Nxf1 {[%clk 0:01:54]}  Rf8 {[%clk 0:02:45]} 20. h3 {[%clk 0:01:48]}  c5 {[%clk 0:02:38]} 21. Nh2 {[%clk 0:01:43]}  cxd4 {[%clk 0:02:38]} 22. exd4 {[%clk 0:01:42]}  Be8 {[%clk 0:02:32]} 23. Ng4 {[%clk 0:01:41]}  Kh8 {[%clk 0:02:27]} 24. Ne3 {[%clk 0:01:34]}  Bb5 {[%clk 0:02:17]} 25. Kh2 {[%clk 0:01:16]}  Bd3 {[%clk 0:02:16]} 26. Qg4 {[%clk 0:01:16]}  Qf7 {[%clk 0:02:11]} 27. Rc1 {[%clk 0:01:08]}  b5 {[%clk 0:02:09]} 28. Nc2 {[%clk 0:00:44]}  Qf4+ {[%clk 0:02:06]} 29. Qxf4 {[%clk 0:00:43]}  Rxf4 {[%clk 0:02:07]} 30. Nb4 {[%clk 0:00:44]}  Bc4 {[%clk 0:01:59]} 31. Kg3 {[%clk 0:00:44]}  Rf1 {[%clk 0:01:56]} 32. Rxf1 {[%clk 0:00:41]}  Bxf1 {[%clk 0:01:56]} 33. Kf2 {[%clk 0:00:41]}  Bc4 {[%clk 0:01:54]} 34. Nc6 {[%clk 0:00:41]}  a6 {[%clk 0:01:53]} 35. Nd8 {[%clk 0:00:41]}  Kg8 {[%clk 0:01:50]} 36. Nxe6 {[%clk 0:00:41]}  Kf7 {[%clk 0:01:51]} 37. Nc7 {[%clk 0:00:40]}  a5 {[%clk 0:01:50]} 38. Na6 {[%clk 0:00:35]}  b4 {[%clk 0:01:49]} 39. Nc5 {[%clk 0:00:35]}  bxc3 {[%clk 0:01:47]} 40. bxc3 {[%clk 0:00:36]}  Bb5 {[%clk 0:01:45]} 41. g3 {[%clk 0:00:34]}  a4 {[%clk 0:01:44]} 42. Ke3 {[%clk 0:00:34]}  Kg6 {[%clk 0:01:42]} 43. Kf4 {[%clk 0:00:34]}  h5 {[%clk 0:01:42]} 44. g4 {[%clk 0:00:34]}  hxg4 {[%clk 0:01:43]} 45. hxg4 {[%clk 0:00:35]}  Kf7 {[%clk 0:01:42]} 46. g5 {[%clk 0:00:32]}  g6 {[%clk 0:01:42]} 47. e6+ {[%clk 0:00:32]}  Ke8 {[%clk 0:01:38]} 48. Ke3 {[%clk 0:00:18]}  Ke7 {[%clk 0:01:33]} 49. Kf4 {[%clk 0:00:18]}  Ke8 {[%clk 0:01:33]} 50. Kg3 {[%clk 0:00:17]}  Ke7 {[%clk 0:01:30]} 51. Kf2 {[%clk 0:00:16]}  Be8 {[%clk 0:01:27]} 52. Ke3 {[%clk 0:00:13]}  Bb5 {[%clk 0:01:28]} 53. Kd2 {[%clk 0:00:12]}  Kd6 {[%clk 0:01:27]} 54. Ke3 {[%clk 0:00:09]}  Be8 {[%clk 0:01:25]} 55. c4 {[%clk 0:00:09]}  Bb5 {[%clk 0:01:26]} 56. cxb5 {[%clk 0:00:09]}  Kc7 {[%clk 0:01:26]} 57. Nxe4 {[%clk 0:00:08]}  dxe4 {[%clk 0:01:26]} 58. Kxe4 {[%clk 0:00:09]}  Kd6 {[%clk 0:01:27]} 59. d5 {[%clk 0:00:09]}  Kc7 {[%clk 0:01:26]} 60. Ke5 {[%clk 0:00:09]}  Kd8 {[%clk 0:01:26]} 61. d6 {[%clk 0:00:09]}  Ke8 {[%clk 0:01:25]} 62. Kf6 {[%clk 0:00:09]}  Kd8 {[%clk 0:01:26]} 63. Kf7 {[%clk 0:00:09]}  Kc8 {[%clk 0:01:26]} 64. e7 {[%clk 0:00:10]}  Kb7 {[%clk 0:01:27]} 65. e8=Q {[%clk 0:00:09]}  Kb6 {[%clk 0:01:28]} 66. Qc6+ {[%clk 0:00:09]}  Ka5 {[%clk 0:01:27]} 67. Qc3+ {[%clk 0:00:07]}  Kxb5 {[%clk 0:01:26]} 68. d7 {[%clk 0:00:07]}  Kb6 {[%clk 0:01:26]} 69. d8=Q+ {[%clk 0:00:06]}  Kb5 {[%clk 0:01:26]} 70. Qb8+ {[%clk 0:00:04]}  Ka6 {[%clk 0:01:25]} 71. Qc6+ {[%clk 0:00:03]}  Ka5 {[%clk 0:01:25]} 72. Qcb5# {[%clk 0:00:03]} 1-0


[Site "https://www.chess.com"]

[Event "Titled Tuesday Blitz August 08 Early 2023"]
[White "Nikologorsky, Matfei"]
[Black "Yuruultei Batbaatar"]
[WhiteFideId "24102474"]
[BlackFideId "4905962"]
[WhiteElo "2408"]
[BlackElo "1432"]
[Result "0-1"]
[Round "2"]
[TimeControl "180+1"]
[Date "2023.08.08"]
[WhiteClock "0:00:56"]
[BlackClock "0:00:52"]
[Board "283"]

1. e4 {[%clk 0:03:00]}  c5 {[%clk 0:02:59]} 2. Nf3 {[%clk 0:03:01]}  e6 {[%clk 0:02:59]} 3. d4 {[%clk 0:03:01]}  cxd4 {[%clk 0:03:00]} 4. Nxd4 {[%clk 0:03:01]}  Nc6 {[%clk 0:03:01]} 5. Nc3 {[%clk 0:03:02]}  a6 {[%clk 0:03:01]} 6. Be2 {[%clk 0:03:00]}  Qc7 {[%clk 0:02:59]} 7. O-O {[%clk 0:03:00]}  Nf6 {[%clk 0:02:59]} 8. Be3 {[%clk 0:03:00]}  Be7 {[%clk 0:02:57]} 9. f4 {[%clk 0:02:58]}  d6 {[%clk 0:02:56]} 10. Qe1 {[%clk 0:02:58]}  O-O {[%clk 0:02:55]} 11. Qg3 {[%clk 0:02:52]}  Nxd4 {[%clk 0:02:50]} 12. Bxd4 {[%clk 0:02:52]}  b5 {[%clk 0:02:50]} 13. a3 {[%clk 0:02:51]}  Bb7 {[%clk 0:02:50]} 14. Bf3 {[%clk 0:02:50]}  d5 {[%clk 0:02:39]} 15. exd5 {[%clk 0:02:47]}  Bc5 {[%clk 0:02:38]} 16. Bxc5 {[%clk 0:02:44]}  Qxc5+ {[%clk 0:02:39]} 17. Qf2 {[%clk 0:02:37]}  Qxf2+ {[%clk 0:02:38]} 18. Kxf2 {[%clk 0:02:38]}  Nxd5 {[%clk 0:02:39]} 19. Nxd5 {[%clk 0:02:37]}  Bxd5 {[%clk 0:02:38]} 20. Bxd5 {[%clk 0:02:37]}  exd5 {[%clk 0:02:39]} 21. Rad1 {[%clk 0:02:38]}  Rfd8 {[%clk 0:02:37]} 22. Rfe1 {[%clk 0:02:35]}  Rac8 {[%clk 0:02:37]} 23. c3 {[%clk 0:02:35]}  Rc4 {[%clk 0:02:36]} 24. Kf3 {[%clk 0:02:32]}  g6 {[%clk 0:02:31]} 25. Re2 {[%clk 0:02:14]}  a5 {[%clk 0:02:30]} 26. Red2 {[%clk 0:02:13]}  b4 {[%clk 0:02:17]} 27. Rd4 {[%clk 0:01:47]}  Rxd4 {[%clk 0:01:37]} 28. Rxd4 {[%clk 0:01:48]}  bxc3 {[%clk 0:01:32]} 29. bxc3 {[%clk 0:01:49]}  Rc8 {[%clk 0:01:31]} 30. Rd3 {[%clk 0:01:47]}  Rc4 {[%clk 0:01:28]} 31. Ke3 {[%clk 0:01:43]}  Re4+ {[%clk 0:01:24]} 32. Kf3 {[%clk 0:01:44]}  Ra4 {[%clk 0:01:24]} 33. Rxd5 {[%clk 0:01:42]}  Rxa3 {[%clk 0:01:24]} 34. Rc5 {[%clk 0:01:43]}  Ra1 {[%clk 0:01:21]} 35. g3 {[%clk 0:01:43]}  a4 {[%clk 0:01:21]} 36. Ra5 {[%clk 0:01:42]}  a3 {[%clk 0:01:21]} 37. Kg4 {[%clk 0:01:36]}  a2 {[%clk 0:01:20]} 38. c4 {[%clk 0:01:34]}  Kg7 {[%clk 0:01:19]} 39. c5 {[%clk 0:01:32]}  h5+ {[%clk 0:01:18]} 40. Kh3 {[%clk 0:01:24]}  Rc1 {[%clk 0:01:13]} 41. Rxa2 {[%clk 0:01:24]}  Rxc5 {[%clk 0:01:13]} 42. Ra6 {[%clk 0:01:25]}  Rb5 {[%clk 0:01:11]} 43. Rc6 {[%clk 0:01:21]}  Ra5 {[%clk 0:01:11]} 44. Kh4 {[%clk 0:01:18]}  Rb5 {[%clk 0:01:09]} 45. g4 {[%clk 0:01:14]}  hxg4 {[%clk 0:01:07]} 46. Kxg4 {[%clk 0:01:15]}  Rh5 {[%clk 0:01:04]} 47. h4 {[%clk 0:01:14]}  Rb5 {[%clk 0:01:02]} 48. Ra6 {[%clk 0:01:10]}  Rc5 {[%clk 0:01:01]} 49. Ra7 {[%clk 0:01:08]}  Rb5 {[%clk 0:00:59]} 50. Re7 {[%clk 0:01:08]}  Kf6 {[%clk 0:00:58]} 51. Ra7 {[%clk 0:01:06]}  Kg7 {[%clk 0:00:57]} 52. Ra2 {[%clk 0:01:05]}  Rb3 {[%clk 0:00:53]} 53. Ra5 {[%clk 0:01:04]}  f5+ {[%clk 0:00:52]} 54. Rxf5 {[%clk 0:00:56]}  gxf5+ {[%clk 0:00:53]} 55. Kxf5 {[%clk 0:00:57]}  Rb5+ {[%clk 0:00:52]} 56. Kg4 {[%clk 0:00:56]}  Kg6 {[%clk 0:00:52]} 0-1


[Site "https://www.chess.com"]

[Event "Titled Tuesday Blitz August 08 Early 2023"]
[White "Gan-Od, Sereenen"]
[Black "Firouzja, Alireza"]
[WhiteFideId "4901304"]
[BlackFideId "12573981"]
[WhiteElo "2772"]
[BlackElo "3096"]
[Result "1/2-1/2"]
[Round "3"]
[TimeControl "180+1"]
[Date "2023.08.08"]
[WhiteClock "0:00:11"]
[BlackClock "0:00:11"]
[Board "2"]

1. d4 {[%clk 0:03:00]}  Nf6 {[%clk 0:02:59]} 2. c4 {[%clk 0:02:53]}  g6 {[%clk 0:02:59]} 3. Nc3 {[%clk 0:02:53]}  Bg7 {[%clk 0:02:59]} 4. e4 {[%clk 0:02:52]}  d6 {[%clk 0:03:00]} 5. Nf3 {[%clk 0:02:52]}  O-O {[%clk 0:03:01]} 6. Be2 {[%clk 0:02:48]}  Na6 {[%clk 0:03:01]} 7. O-O {[%clk 0:02:46]}  e5 {[%clk 0:03:02]} 8. Be3 {[%clk 0:02:44]}  Qe7 {[%clk 0:03:02]} 9. Qc2 {[%clk 0:02:35]}  c6 {[%clk 0:03:02]} 10. d5 {[%clk 0:02:34]}  Ng4 {[%clk 0:03:00]} 11. Bg5 {[%clk 0:02:25]}  f6 {[%clk 0:03:00]} 12. Bh4 {[%clk 0:02:08]}  Nh6 {[%clk 0:03:00]} 13. Ne1 {[%clk 0:02:06]}  g5 {[%clk 0:02:58]} 14. Bg3 {[%clk 0:02:06]}  f5 {[%clk 0:02:59]} 15. f3 {[%clk 0:02:06]}  f4 {[%clk 0:02:47]} 16. Bf2 {[%clk 0:02:06]}  Nf7 {[%clk 0:02:47]} 17. Nd3 {[%clk 0:01:59]}  c5 {[%clk 0:02:47]} 18. Rab1 {[%clk 0:01:55]}  h5 {[%clk 0:02:48]} 19. b4 {[%clk 0:01:40]}  b6 {[%clk 0:02:48]} 20. Qa4 {[%clk 0:01:32]}  g4 {[%clk 0:02:44]} 21. bxc5 {[%clk 0:01:31]}  Nxc5 {[%clk 0:02:38]} 22. Nxc5 {[%clk 0:01:30]}  bxc5 {[%clk 0:02:19]} 23. Qc6 {[%clk 0:01:24]}  gxf3 {[%clk 0:02:19]} 24. Bxf3 {[%clk 0:01:23]}  Bg4 {[%clk 0:02:19]} 25. Rb7 {[%clk 0:01:03]}  Qg5 {[%clk 0:02:18]} 26. Kh1 {[%clk 0:01:00]}  Qg6 {[%clk 0:02:10]} 27. Nb5 {[%clk 0:00:47]}  Bf6 {[%clk 0:01:47]} 28. Nxd6 {[%clk 0:00:18]}  Nd8 {[%clk 0:01:47]} 29. Qxc5 {[%clk 0:00:18]}  Nxb7 {[%clk 0:01:45]} 30. Nxb7 {[%clk 0:00:18]}  h4 {[%clk 0:01:38]} 31. h3 {[%clk 0:00:18]}  Bxf3 {[%clk 0:01:35]} 32. gxf3 {[%clk 0:00:18]}  Kh8 {[%clk 0:01:36]} 33. Rg1 {[%clk 0:00:15]}  Qh7 {[%clk 0:01:32]} 34. Nd6 {[%clk 0:00:15]}  Rg8 {[%clk 0:01:20]} 35. Rg4 {[%clk 0:00:14]}  Qd7 {[%clk 0:01:13]} 36. Nf5 {[%clk 0:00:13]}  Rab8 {[%clk 0:01:05]} 37. Bxh4 {[%clk 0:00:12]}  Rb1+ {[%clk 0:01:00]} 38. Kh2 {[%clk 0:00:12]}  Rb2+ {[%clk 0:00:56]} 39. Kh1 {[%clk 0:00:12]}  Qd8 {[%clk 0:00:22]} 40. Rxg8+ {[%clk 0:00:11]}  Kxg8 {[%clk 0:00:22]} 41. Qg1+ {[%clk 0:00:12]}  Kh7 {[%clk 0:00:13]} 42. Qg4 {[%clk 0:00:11]}  Rb1+ {[%clk 0:00:12]} 43. Kh2 {[%clk 0:00:11]}  Rb2+ {[%clk 0:00:13]} 44. Kh1 {[%clk 0:00:11]}  Rb1+ {[%clk 0:00:11]} 45. Kg2 {[%clk 0:00:11]}  Rb2+ {[%clk 0:00:11]} 46. Kh1 {[%clk 0:00:11]} 1/2-1/2


[Site "https://www.chess.com"]

[Event "Titled Tuesday Blitz August 08 Early 2023"]
[White "Caruana, Fabiano"]
[Black "Tanenbaum, Zachary"]
[WhiteFideId "2020009"]
[BlackFideId "2060850"]
[WhiteElo "3090"]
[BlackElo "2758"]
[Result "1-0"]
[Round "3"]
[TimeControl "180+1"]
[Date "2023.08.08"]
[WhiteClock "0:00:46"]
[BlackClock "0:00:04"]
[Board "3"]

1. d4 {[%clk 0:03:00]}  d5 {[%clk 0:03:00]} 2. Bf4 {[%clk 0:03:00]}  Nf6 {[%clk 0:03:00]} 3. e3 {[%clk 0:03:01]}  c5 {[%clk 0:03:00]} 4. Nf3 {[%clk 0:03:01]}  Nc6 {[%clk 0:03:00]} 5. Nbd2 {[%clk 0:03:01]}  cxd4 {[%clk 0:02:56]} 6. exd4 {[%clk 0:03:01]}  Bf5 {[%clk 0:02:57]} 7. c3 {[%clk 0:03:00]}  e6 {[%clk 0:02:56]} 8. Be2 {[%clk 0:02:53]}  Bd6 {[%clk 0:02:56]} 9. Bxd6 {[%clk 0:02:52]}  Qxd6 {[%clk 0:02:57]} 10. Nh4 {[%clk 0:02:47]}  Be4 {[%clk 0:02:55]} 11. O-O {[%clk 0:02:45]}  O-O {[%clk 0:02:54]} 12. g3 {[%clk 0:02:42]}  a6 {[%clk 0:02:50]} 13. a4 {[%clk 0:02:41]}  Rab8 {[%clk 0:02:47]} 14. a5 {[%clk 0:02:41]}  Rbc8 {[%clk 0:02:25]} 15. Nb3 {[%clk 0:02:38]}  Nd7 {[%clk 0:02:22]} 16. Re1 {[%clk 0:02:29]}  h6 {[%clk 0:02:21]} 17. Bf1 {[%clk 0:02:27]}  Ne7 {[%clk 0:01:52]} 18. Ng2 {[%clk 0:02:17]}  Qc7 {[%clk 0:01:31]} 19. Nf4 {[%clk 0:02:14]}  Ng6 {[%clk 0:01:30]} 20. Nxg6 {[%clk 0:02:12]}  Bxg6 {[%clk 0:01:30]} 21. Ra4 {[%clk 0:02:03]}  Rb8 {[%clk 0:01:20]} 22. Rb4 {[%clk 0:02:02]}  Rfc8 {[%clk 0:01:19]} 23. Qd2 {[%clk 0:01:55]}  Nf6 {[%clk 0:01:18]} 24. f3 {[%clk 0:01:46]}  Nd7 {[%clk 0:01:16]} 25. Ra1 {[%clk 0:01:42]}  Bf5 {[%clk 0:01:11]} 26. Kg2 {[%clk 0:01:40]}  Qd6 {[%clk 0:01:10]} 27. Qe1 {[%clk 0:01:31]}  Rc7 {[%clk 0:01:05]} 28. g4 {[%clk 0:01:28]}  Bg6 {[%clk 0:01:04]} 29. Qg3 {[%clk 0:01:28]}  Qxg3+ {[%clk 0:00:48]} 30. Kxg3 {[%clk 0:01:27]}  f6 {[%clk 0:00:43]} 31. h4 {[%clk 0:01:26]}  h5 {[%clk 0:00:42]} 32. g5 {[%clk 0:01:23]}  Kf7 {[%clk 0:00:41]} 33. Re1 {[%clk 0:01:20]}  Re8 {[%clk 0:00:37]} 34. f4 {[%clk 0:01:18]}  Nb8 {[%clk 0:00:34]} 35. Nc5 {[%clk 0:01:16]}  Ree7 {[%clk 0:00:33]} 36. Rb6 {[%clk 0:01:13]}  Nc6 {[%clk 0:00:28]} 37. b4 {[%clk 0:01:12]}  Na7 {[%clk 0:00:27]} 38. Re3 {[%clk 0:01:05]}  Bf5 {[%clk 0:00:26]} 39. Rd6 {[%clk 0:00:53]}  Nc6 {[%clk 0:00:19]} 40. Nxb7 {[%clk 0:00:46]}  Nxd4 {[%clk 0:00:19]} 41. Nd8+ {[%clk 0:00:45]}  Ke8 {[%clk 0:00:18]} 42. cxd4 {[%clk 0:00:46]}  Red7 {[%clk 0:00:10]} 43. Nxe6 {[%clk 0:00:45]}  Rxd6 {[%clk 0:00:07]} 44. Nxc7+ {[%clk 0:00:45]}  Kd7 {[%clk 0:00:04]} 45. Nxa6 {[%clk 0:00:46]} 1-0


[Site "https://www.chess.com"]

[Event "Titled Tuesday Blitz August 08 Early 2023"]
[White "Trost, Edvin"]
[Black "Fedoseev, Vladimir"]
[WhiteFideId "1729519"]
[BlackFideId "24130737"]
[WhiteElo "2749"]
[BlackElo "3084"]
[Result "0-1"]
[Round "3"]
[TimeControl "180+1"]
[Date "2023.08.08"]
[WhiteClock "0:00:00"]
[BlackClock "0:00:18"]
[Board "4"]

1. c4 {[%clk 0:03:00]}  e5 {[%clk 0:02:59]} 2. g3 {[%clk 0:02:55]}  g6 {[%clk 0:02:58]} 3. Bg2 {[%clk 0:02:55]}  Bg7 {[%clk 0:02:58]} 4. d3 {[%clk 0:02:54]}  a5 {[%clk 0:02:55]} 5. Nc3 {[%clk 0:02:52]}  d6 {[%clk 0:02:54]} 6. e3 {[%clk 0:02:51]}  Nc6 {[%clk 0:02:48]} 7. a3 {[%clk 0:02:47]}  Nge7 {[%clk 0:02:45]} 8. h4 {[%clk 0:02:43]}  Be6 {[%clk 0:02:37]} 9. h5 {[%clk 0:02:37]}  f5 {[%clk 0:02:00]} 10. Nf3 {[%clk 0:02:28]}  Qd7 {[%clk 0:01:53]} 11. Rb1 {[%clk 0:02:17]}  e4 {[%clk 0:01:41]} 12. Ng5 {[%clk 0:02:12]}  Bxc3+ {[%clk 0:01:26]} 13. bxc3 {[%clk 0:02:11]}  Ne5 {[%clk 0:01:26]} 14. O-O {[%clk 0:01:25]}  Nxd3 {[%clk 0:01:23]} 15. Nxe6 {[%clk 0:01:25]}  Qxe6 {[%clk 0:01:22]} 16. Rxb7 {[%clk 0:01:25]}  Qxc4 {[%clk 0:01:20]} 17. Bd2 {[%clk 0:01:19]}  Nd5 {[%clk 0:01:16]} 18. f3 {[%clk 0:01:01]}  Nc5 {[%clk 0:01:16]} 19. Rb1 {[%clk 0:00:58]}  O-O {[%clk 0:01:14]} 20. Rf2 {[%clk 0:00:48]}  Rab8 {[%clk 0:01:06]} 21. Bf1 {[%clk 0:00:47]}  Nd3 {[%clk 0:01:04]} 22. fxe4 {[%clk 0:00:29]}  Qxe4 {[%clk 0:01:01]} 23. Bg2 {[%clk 0:00:19]}  Qe5 {[%clk 0:00:52]} 24. Rf3 {[%clk 0:00:16]}  Nxc3 {[%clk 0:00:40]} 25. Bxc3 {[%clk 0:00:15]}  Qxc3 {[%clk 0:00:40]} 26. hxg6 {[%clk 0:00:11]}  hxg6 {[%clk 0:00:39]} 27. Bf1 {[%clk 0:00:10]}  Ne5 {[%clk 0:00:37]} 28. Rf2 {[%clk 0:00:08]}  Qxe3 {[%clk 0:00:36]} 29. Rxb8 {[%clk 0:00:07]}  Rxb8 {[%clk 0:00:34]} 30. Kg2 {[%clk 0:00:06]}  Qe4+ {[%clk 0:00:30]} 31. Kg1 {[%clk 0:00:05]}  Rb1 {[%clk 0:00:29]} 32. Qe2 {[%clk 0:00:01]}  Kg7 {[%clk 0:00:25]} 33. Qa2 {[%clk 0:00:01]}  d5 {[%clk 0:00:21]} 34. Qc2 {[%clk 0:00:01]}  Nf3+ {[%clk 0:00:19]} 35. Kg2 {[%clk 0:00:00]}  Ne1+ {[%clk 0:00:18]} 0-1


[Site "https://www.chess.com"]

[Event "Titled Tuesday Blitz August 08 Early 2023"]
[White "Erigaisi Arjun"]
[Black "Lorparizangeneh, Shahin"]
[WhiteFideId "35009192"]
[BlackFideId "12521604"]
[WhiteElo "3077"]
[BlackElo "2748"]
[Result "1-0"]
[Round "3"]
[TimeControl "180+1"]
[Date "2023.08.08"]
[WhiteClock "0:02:02"]
[BlackClock "0:00:14"]
[Board "5"]

1. c4 {[%clk 0:03:00]}  e5 {[%clk 0:02:05]} 2. b3 {[%clk 0:03:01]}  Nf6 {[%clk 0:02:05]} 3. Bb2 {[%clk 0:03:01]}  Nc6 {[%clk 0:02:05]} 4. g3 {[%clk 0:03:01]}  Bc5 {[%clk 0:02:05]} 5. Bg2 {[%clk 0:03:01]}  d6 {[%clk 0:02:06]} 6. a3 {[%clk 0:03:01]}  a5 {[%clk 0:02:05]} 7. e3 {[%clk 0:03:01]}  O-O {[%clk 0:02:05]} 8. Nc3 {[%clk 0:03:01]}  Re8 {[%clk 0:02:05]} 9. d3 {[%clk 0:03:01]}  Bg4 {[%clk 0:02:05]} 10. Nge2 {[%clk 0:03:01]}  Qd7 {[%clk 0:02:03]} 11. h3 {[%clk 0:03:01]}  Bf5 {[%clk 0:02:04]} 12. g4 {[%clk 0:03:00]}  Bg6 {[%clk 0:02:04]} 13. Ng3 {[%clk 0:03:00]}  Nd8 {[%clk 0:01:49]} 14. h4 {[%clk 0:02:58]}  h6 {[%clk 0:01:34]} 15. g5 {[%clk 0:02:54]}  hxg5 {[%clk 0:01:32]} 16. hxg5 {[%clk 0:02:55]}  Nh7 {[%clk 0:01:33]} 17. Nce4 {[%clk 0:02:52]}  Ne6 {[%clk 0:01:33]} 18. Qg4 {[%clk 0:02:51]}  Rad8 {[%clk 0:01:27]} 19. O-O-O {[%clk 0:02:46]}  Nexg5 {[%clk 0:01:20]} 20. Qh4 {[%clk 0:02:44]}  Qe7 {[%clk 0:01:05]} 21. Nc3 {[%clk 0:02:34]}  c6 {[%clk 0:01:05]} 22. Rh2 {[%clk 0:02:26]}  d5 {[%clk 0:01:04]} 23. cxd5 {[%clk 0:02:19]}  Bxa3 {[%clk 0:01:04]} 24. dxc6 {[%clk 0:02:13]}  Qc5 {[%clk 0:00:51]} 25. Qc4 {[%clk 0:02:12]}  Bxb2+ {[%clk 0:00:43]} 26. Kxb2 {[%clk 0:02:13]}  Qxc4 {[%clk 0:00:38]} 27. bxc4 {[%clk 0:02:10]}  bxc6 {[%clk 0:00:34]} 28. Bxc6 {[%clk 0:02:11]}  Re6 {[%clk 0:00:34]} 29. Nd5 {[%clk 0:02:08]}  Kf8 {[%clk 0:00:29]} 30. Bb5 {[%clk 0:02:07]}  Nf3 {[%clk 0:00:24]} 31. Rhh1 {[%clk 0:02:06]}  Red6 {[%clk 0:00:19]} 32. Ne4 {[%clk 0:02:03]}  Bxe4 {[%clk 0:00:19]} 33. dxe4 {[%clk 0:02:04]}  Kg8 {[%clk 0:00:14]} 34. c5 {[%clk 0:02:02]} 1-0


[Site "https://www.chess.com"]

[Event "Titled Tuesday Blitz August 08 Early 2023"]
[White "Pranesh M"]
[Black "Prohaszka, Peter"]
[WhiteFideId "35028600"]
[BlackFideId "726265"]
[WhiteElo "3045"]
[BlackElo "2740"]
[Result "1-0"]
[Round "3"]
[TimeControl "180+1"]
[Date "2023.08.08"]
[WhiteClock "0:01:33"]
[BlackClock "0:00:00"]
[Board "6"]

1. e4 {[%clk 0:03:00]}  c6 {[%clk 0:02:51]} 2. d4 {[%clk 0:03:00]}  d5 {[%clk 0:02:52]} 3. e5 {[%clk 0:03:01]}  Bf5 {[%clk 0:02:50]} 4. Nc3 {[%clk 0:03:02]}  e6 {[%clk 0:02:50]} 5. g4 {[%clk 0:03:02]}  Bg6 {[%clk 0:02:51]} 6. Nge2 {[%clk 0:03:03]}  c5 {[%clk 0:02:49]} 7. h4 {[%clk 0:03:03]}  h5 {[%clk 0:02:49]} 8. Nf4 {[%clk 0:03:03]}  Bh7 {[%clk 0:02:50]} 9. g5 {[%clk 0:03:04]}  cxd4 {[%clk 0:02:16]} 10. Nb5 {[%clk 0:03:04]}  Be4 {[%clk 0:02:15]} 11. f3 {[%clk 0:03:04]}  Bf5 {[%clk 0:02:16]} 12. Nxd4 {[%clk 0:03:04]}  Ne7 {[%clk 0:02:02]} 13. Nxf5 {[%clk 0:03:05]}  Nxf5 {[%clk 0:02:01]} 14. Bd3 {[%clk 0:03:06]}  g6 {[%clk 0:01:47]} 15. Bxf5 {[%clk 0:03:05]}  gxf5 {[%clk 0:01:47]} 16. Be3 {[%clk 0:03:04]}  Nc6 {[%clk 0:01:45]} 17. Nd3 {[%clk 0:03:04]}  d4 {[%clk 0:01:30]} 18. Bf2 {[%clk 0:02:59]}  Qd5 {[%clk 0:01:30]} 19. Qe2 {[%clk 0:02:59]}  Bg7 {[%clk 0:01:07]} 20. Bg3 {[%clk 0:02:59]}  Ne7 {[%clk 0:01:03]} 21. O-O {[%clk 0:02:54]}  Ng6 {[%clk 0:01:03]} 22. f4 {[%clk 0:02:51]}  Bf8 {[%clk 0:00:44]} 23. Rad1 {[%clk 0:02:48]}  Rc8 {[%clk 0:00:43]} 24. Ne1 {[%clk 0:02:26]}  Bc5 {[%clk 0:00:38]} 25. Kh2 {[%clk 0:02:24]}  Qxa2 {[%clk 0:00:30]} 26. Qb5+ {[%clk 0:02:18]}  Kf8 {[%clk 0:00:29]} 27. Qxb7 {[%clk 0:02:01]}  Kg7 {[%clk 0:00:29]} 28. Nd3 {[%clk 0:02:02]}  Bb6 {[%clk 0:00:28]} 29. Qg2 {[%clk 0:02:01]}  Rc4 {[%clk 0:00:24]} 30. Ra1 {[%clk 0:01:59]}  Qxa1 {[%clk 0:00:15]} 31. Rxa1 {[%clk 0:02:00]}  Rhc8 {[%clk 0:00:15]} 32. Ne1 {[%clk 0:01:56]}  Ne7 {[%clk 0:00:15]} 33. Qf3 {[%clk 0:01:55]}  Kg6 {[%clk 0:00:14]} 34. Bf2 {[%clk 0:01:50]}  Nd5 {[%clk 0:00:13]} 35. Kh1 {[%clk 0:01:51]}  d3 {[%clk 0:00:06]} 36. Nxd3 {[%clk 0:01:44]}  Bxf2 {[%clk 0:00:03]} 37. Qxf2 {[%clk 0:01:44]}  Rxc2 {[%clk 0:00:03]} 38. Qe1 {[%clk 0:01:45]}  Rb8 {[%clk 0:00:02]} 39. Rc1 {[%clk 0:01:45]}  Rbc8 {[%clk 0:00:01]} 40. Rxc2 {[%clk 0:01:43]}  Rxc2 {[%clk 0:00:00]} 41. Nb4 {[%clk 0:01:33]} 1-0


[Site "https://www.chess.com"]